bitfinex/quotes_BTCUSD_20240819
["timestamp","ask_amount","ask_price","bid_price","bid_amount"]
[1724030559672,0.599005,58430.0,58429.0,0.0823]
[1724030560293,0.599027,58428.0,58427.0,0.001]
[1724030560503,0.359434,58425.0,58424.0,0.0823]
[1724030561317,0.599057,58425.0,58424.0,0.0823]
[1724030561877,0.600057,58425.0,58424.0,0.0833]
[1724030562284,0.601057,58425.0,58424.0,0.0923]
[1724030562705,0.121811,58425.0,58424.0,0.0923]
[1724030563838,0.361434,58425.0,58424.0,0.01]
[1724030563994,0.37458317,58425.0,58424.0,0.01]
[1724030564196,0.13496017,58425.0,58424.0,0.01]
[1724030564817,0.121811,58425.0,58424.0,0.01]
[1724030565669,0.37458317,58425.0,58424.0,0.0109031]
[1724030565881,0.13496017,58425.0,58424.0,0.0109031]
[1724030567861,0.13496017,58425.0,58424.0,1.5109031]
[1724030568072,0.37458317,58425.0,58424.0,1.5109031]
[1724030568654,0.01514917,58425.0,58424.0,1.6520031]
[1724030569405,0.002,58425.0,58424.0,1.6520031]
[1724030570423,0.13496382,58425.0,58424.0,1.6520031]
[1724030570622,0.61420982,58425.0,58424.0,0.0875031]
[1724030571206,0.61420982,58425.0,58424.0,0.0109031]
[1724030572403,0.361434,58425.0,58424.0,0.0894031]
[1724030572673,0.002,58425.0,58424.0,0.0894031]
[1724030572882,0.01517304,58425.0,58424.0,0.0894031]
[1724030572993,0.601057,58425.0,58424.0,0.0894031]
[1724030573209,0.61421103,58425.0,58424.0,0.0894031]
[1724030574745,0.61421103,58425.0,58424.0,0.0109031]
[1724030574873,0.85383403,58425.0,58424.0,0.0109031]
[1724030576058,1.02538857,58425.0,58424.0,0.0109031]
[1724030582360,0.13496503,58425.0,58424.0,0.0109031]
[1724030582571,0.13496503,58425.0,58424.0,0.0883031]
[1724030582988,0.13496503,58425.0,58424.0,1.5883031]
[1724030583665,0.37458803,58425.0,58424.0,0.0109031]
[1724030583934,0.61421103,58425.0,58424.0,0.0109031]
[1724030586542,1.08868857,58425.0,58424.0,0.0109031]
[1724030586750,1.11168857,58425.0,58424.0,0.0109031]
[1724030587178,1.36921264,58425.0,58424.0,0.0109031]
[1724030587601,1.36921264,58425.0,58424.0,0.0019031]
[1724030587602,1.36821264,58425.0,58424.0,0.0019031]
[1724030587810,1.36821264,58425.0,58424.0,0.0009031]
[1724030587811,1.36721264,58425.0,58424.0,0.0009031]
[1724030588015,1.36721264,58425.0,58424.0,0.0019031]
[1724030588016,1.12781264,58425.0,58424.0,0.0019031]
[1724030588438,1.10481264,58425.0,58424.0,0.0049031]
[1724030589276,1.12781264,58425.0,58424.0,0.0039031]
[1724030589683,1.13081264,58425.0,58424.0,0.0009031]
[1724030590096,1.13281264,58425.0,58424.0,0.0009031]
[1724030590306,1.10981264,58425.0,58424.0,0.0009031]
[1724030590431,1.10481264,58425.0,58424.0,0.0009031]
[1724030590631,1.02338857,58425.0,58424.0,0.0009031]
[1724030590894,1.10580577,58425.0,58424.0,0.0009031]
[1724030591249,1.10480577,58425.0,58424.0,0.0009031]
[1724030591676,1.10580577,58425.0,58424.0,0.0009031]
[1724030592283,1.10580577,58425.0,58424.0,0.0793031]
[1724030592645,1.10580577,58425.0,58424.0,1.5793031]
[1724030592906,0.93425123,58425.0,58424.0,1.5793031]
[1724030593118,0.93325123,58425.0,58424.0,1.5009031]
[1724030593326,1.10480577,58425.0,58424.0,0.0039031]
[1724030593643,1.21080577,58425.0,58424.0,0.0049031]
[1724030593841,1.21080577,58425.0,58424.0,0.0039031]
[1724030594161,1.21080577,58425.0,58424.0,0.0049031]
[1724030597228,1.26167457,58425.0,58424.0,0.0049031]
[1724030597347,1.21080577,58425.0,58424.0,0.0049031]
[1724030598257,1.26179536,58425.0,58424.0,0.0049031]
[1724030598491,1.26180195,58425.0,58424.0,0.0049031]
[1724030598952,0.74462441,58425.0,58424.0,0.0880031]
[1724030599155,0.69362823,58425.0,58424.0,0.0880031]
[1724030599610,0.61221103,58425.0,58424.0,0.0880031]
[1724030600186,0.37258803,58425.0,58424.0,0.1511031]
[1724030600440,0.01315403,58425.0,58424.0,0.1511031]
[1724030600784,0.119807,58427.0,58424.0,0.1511031]
[1724030600994,0.01307496,58425.0,58424.0,1.6511031]
[1724030601480,0.119809,58426.0,58425.0,0.0758]
[1724030601709,0.119807,58428.0,58426.0,0.0758]
[1724030602185,0.119807,58428.0,58427.0,1.5]
[1724030603127,0.359422,58427.0,58426.0,0.0758]
[1724030604401,0.119807,58427.0,58426.0,0.0758]
[1724030604644,0.120807,58427.0,58426.0,0.0848]
[1724030605358,0.361422,58427.0,58426.0,0.0928]
[1724030607053,0.121807,58427.0,58426.0,0.0928]
[1724030607303,0.361422,58427.0,58426.0,0.0928]
[1724030609171,0.37456611,58427.0,58426.0,0.0928]
[1724030609614,0.61418111,58427.0,58426.0,0.017]
[1724030609820,0.85379611,58427.0,58426.0,0.017]
[1724030612706,0.61418111,58427.0,58426.0,0.017]
[1724030615529,0.69548819,58427.0,58426.0,0.017]
[1724030616914,0.09645119,58427.0,58426.0,0.1594]
[1724030617170,0.01514411,58427.0,58426.0,0.279209]
[1724030617426,0.002,58427.0,58426.0,0.518828]
[1724030617596,0.01511132,58427.0,58426.0,2.67604321]
[1724030617802,0.002,58427.0,58426.0,2.67604321]
[1724030617968,0.002,58427.0,58426.0,2.67804321]
[1724030618336,0.002,58427.0,58426.0,2.67462054]
[1724030618467,0.001,58427.0,58426.0,2.76662054]
[1724030618874,0.002,58427.0,58426.0,2.77162054]
[1724030619080,0.000821,58431.0,58430.0,0.604005]
[1724030619284,0.000821,58431.0,58430.0,0.91215954]
[1724030620499,0.000821,58431.0,58430.0,1.15176154]
[1724030621085,0.000821,58431.0,58430.0,1.16576154]
[1724030621488,0.000821,58431.0,58430.0,1.21713436]
[1724030621691,0.000821,58431.0,58430.0,1.24282077]
[1724030622067,0.000821,58431.0,58430.0,1.64816893]
[1724030622271,0.000821,58431.0,58430.0,1.66216893]
[1724030622444,0.000821,58431.0,58430.0,1.55942329]
[1724030622858,0.000821,58431.0,58430.0,3.13645395]
[1724030623271,0.000821,58431.0,58430.0,2.7567922]
[1724030624470,0.000821,58431.0,58430.0,2.69003006]
[1724030624680,0.000821,58431.0,58430.0,2.3149566]
[1724030624888,0.000821,58431.0,58430.0,0.284401]
[1724030625666,0.000821,58431.0,58430.0,0.76802742]
[1724030625873,0.000821,58431.0,58430.0,0.763605]
[1724030626051,0.000821,58431.0,58430.0,2.263605]
[1724030626878,0.000821,58431.0,58430.0,2.43715954]
[1724030627011,0.000821,58431.0,58430.0,2.43815954]
[1724030627218,0.000821,58431.0,58430.0,2.43615954]
[1724030628452,0.000821,58431.0,58430.0,2.024003]
[1724030628657,0.000821,58431.0,58430.0,1.6646]
[1724030628855,0.000821,58431.0,58430.0,1.962903]
[1724030629078,0.01409741,58431.0,58430.0,2.202505]
[1724030629233,0.01409741,58431.0,58430.0,1.962903]
[1724030629234,0.000821,58431.0,58430.0,1.962903]
[1724030630276,0.000821,58431.0,58430.0,2.13545754]
[1724030630467,0.000821,58431.0,58430.0,2.37505954]
[1724030631839,0.000821,58431.0,58430.0,0.87505954]
[1724030632049,0.000821,58431.0,58430.0,0.93685954]
[1724030632281,0.000821,58431.0,58430.0,2.43685954]
[1724030633325,0.000821,58431.0,58430.0,2.43885954]
[1724030633548,0.000821,58431.0,58430.0,2.69092492]
[1724030633758,0.000821,58431.0,58430.0,2.79092492]
[1724030634610,0.000821,58431.0,58430.0,3.03052692]
[1724030635957,0.000821,58431.0,58430.0,3.01652692]
[1724030636192,0.000821,58431.0,58430.0,2.76292492]
[1724030636399,0.001821,58431.0,58430.0,2.77692492]
[1724030636821,0.000821,58431.0,58430.0,2.76292492]
[1724030637042,0.001821,58431.0,58430.0,2.77692492]
[1724030637457,0.002821,58431.0,58430.0,2.79092492]
[1724030638314,0.001821,58431.0,58430.0,2.77692492]
[1724030638749,0.001821,58431.0,58430.0,2.79092492]
[1724030639565,0.001821,58431.0,58430.0,2.79182802]
[1724030639773,0.001821,58431.0,58430.0,1.29182802]
[1724030640190,0.001821,58431.0,58430.0,2.79182802]
[1724030642533,0.001821,58431.0,58430.0,2.54822602]
[1724030642736,0.001821,58431.0,58430.0,2.55022602]
[1724030642964,0.001821,58431.0,58430.0,2.78982802]
[1724030644004,0.001821,58431.0,58430.0,2.79182802]
[1724030645291,0.001821,58431.0,58430.0,2.55222602]
[1724030645709,0.001821,58431.0,58430.0,2.54722602]
[1724030646353,0.001821,58431.0,58430.0,2.55222602]
[1724030648138,0.001821,58431.0,58430.0,2.79182802]
[1724030651477,0.001821,58431.0,58430.0,3.10841442]
[1724030651652,0.001821,58431.0,58430.0,3.24845445]
[1724030652054,0.001821,58431.0,58430.0,3.48805645]
[1724030652683,0.001821,58431.0,58430.0,3.24845445]
[1724030653084,0.001821,58431.0,58430.0,3.17147005]
[1724030653284,0.001821,58431.0,58430.0,3.41107205]
[1724030655055,0.001821,58431.0,58430.0,3.41106611]
[1724030656077,0.000822,58446.0,58445.0,0.359311]
[1724030656078,0.00015756,58446.0,58445.0,0.359311]
[1724030656489,0.01348124,58446.0,58445.0,0.598852]
[1724030656688,0.00015756,58446.0,58445.0,2.098852]
[1724030657300,0.00115756,58446.0,58445.0,2.112852]
[1724030657507,0.00115756,58446.0,58445.0,1.873311]
[1724030658160,0.00115756,58446.0,58445.0,1.63377]
[1724030658365,0.00215756,58446.0,58445.0,1.887311]
[1724030658790,0.00215756,58446.0,58445.0,2.126852]
[1724030660040,0.00215756,58446.0,58445.0,1.528]
[1724030660246,0.14965756,58446.0,58445.0,0.028]
[1724030660659,0.16301546,58446.0,58445.0,0.028]
[1724030661287,0.16301546,58446.0,58445.0,0.14777]
[1724030661491,0.14965756,58446.0,58445.0,0.387311]
[1724030662555,0.14965756,58446.0,58445.0,0.028]
[1724030662759,0.26942556,58446.0,58445.0,0.028]
[1724030662959,0.28278346,58446.0,58445.0,0.028]
[1724030664192,0.28278346,58446.0,58445.0,1.528]
[1724030664610,0.26942556,58446.0,58445.0,1.528]
[1724030664812,0.14965756,58446.0,58445.0,1.528]
[1724030665696,0.00215756,58446.0,58445.0,1.64777]
[1724030665905,0.000822,58447.0,58446.0,0.662342]
[1724030666114,0.05090874,58456.0,58453.0,0.73777]
[1724030666340,0.10181748,58460.0,58453.0,1.44393254]
[1724030666562,0.000822,58461.0,58460.0,0.435718]
[1724030666775,0.51177509,58472.0,58471.0,0.359151]
[1724030666994,0.078,58481.0,58467.0,0.001]
[1724030667214,0.078,58481.0,58471.0,0.240434]
[1724030667465,0.078,58481.0,58468.0,0.17497419]
[1724030667466,0.078,58481.0,58472.0,1.67155454]
[1724030667681,0.07636311,58485.0,58473.0,0.00342033]
[1724030667682,0.1482,58479.0,58473.0,0.00342033]
[1724030667893,0.0819,58476.0,58460.0,0.1]
[1724030668102,0.29028974,58484.0,58453.0,0.0612]
[1724030668103,0.0819,58473.0,58453.0,0.0612]
[1724030668325,0.37046311,58479.0,58471.0,0.014]
[1724030668326,0.0819,58478.0,58471.0,0.014]
[1724030668534,0.0819,58478.0,58463.0,0.0773]
[1724030668535,0.17155454,58477.0,58463.0,0.0773]
[1724030668766,0.0819,58470.0,58462.0,0.1]
[1724030668979,0.0819,58470.0,58464.0,0.119731]
[1724030669181,0.3592,58463.0,58462.0,0.1]
[1724030669388,0.0819,58457.0,58448.0,0.05126382]
[1724030669602,0.0819,58457.0,58449.0,0.17155454]
[1724030669825,0.01336926,58456.0,58455.0,0.11975]
[1724030670097,0.01336926,58456.0,58455.0,0.35925]
[1724030670309,0.0628,58468.0,58449.0,0.001]
[1724030670550,0.0628,58468.0,58448.0,0.0801]
[1724030670551,0.0781,58466.0,58448.0,0.0801]
[1724030670819,0.17155454,58467.0,58448.0,0.0801]
[1724030670820,0.0781,58454.0,58453.0,0.119754]
[1724030671046,0.23435454,58465.0,58448.0,0.18797558]
[1724030671047,0.0786,58464.0,58448.0,0.18797558]
[1724030671285,0.01344131,58454.0,58453.0,0.119754]
[1724030671501,0.0786,58464.0,58449.0,0.24675454]
[1724030671710,0.0786,58464.0,58450.0,0.0034209]
[1724030671927,0.013462,58463.0,58462.0,0.359205]
[1724030672137,0.013462,58463.0,58462.0,1.10970154]
[1724030672346,0.0604,58472.0,58471.0,0.119717]
[1724030672550,0.07399073,58472.0,58471.0,0.359151]
[1724030672773,0.01359073,58472.0,58471.0,0.598585]
[1724030673208,0.0604,58484.0,58483.0,0.359077]
[1724030673650,0.07402682,58484.0,58478.0,0.239405]
[1724030673877,0.0604,58484.0,58479.0,1.5]
[1724030674051,0.0604,58484.0,58483.0,0.119692]
[1724030674487,0.0604,58484.0,58483.0,0.359077]
[1724030675096,0.0604,58484.0,58483.0,0.598462]
[1724030675314,0.0786,58485.0,58484.0,0.359071]
[1724030675519,0.1422,58489.0,58488.0,0.119682]
[1724030675722,0.1422,58489.0,58488.0,0.359047]
[1724030675936,0.00822,58490.0,58489.0,0.598402]
[1724030676162,0.00822,58490.0,58489.0,1.00931754]
[1724030676595,0.00822,58490.0,58489.0,2.50931754]
[1724030676811,0.00822,58490.0,58489.0,2.61031754]
[1724030677436,0.00822,58490.0,58489.0,2.62031754]
[1724030677639,0.00822,58490.0,58489.0,2.52031754]
[1724030678706,0.00822,58490.0,58489.0,2.91441754]
[1724030678917,0.00756465,58490.0,58489.0,3.23737854]
[1724030679133,0.00756465,58490.0,58489.0,3.23937854]
[1724030679357,0.00822,58495.0,58494.0,0.92429]
[1724030679558,0.00822,58495.0,58494.0,1.19184454]
[1724030679979,0.00822,58495.0,58494.0,2.93118454]
[1724030680475,0.000822,58500.0,58494.0,2.93118454]
[1724030680476,0.000822,58500.0,58499.0,1.21412]
[1724030680689,0.000822,58500.0,58499.0,1.48567454]
[1724030680897,0.000822,58500.0,58499.0,1.72499454]
[1724030681329,0.000822,58500.0,58499.0,1.72699454]
[1724030681539,0.000822,58500.0,58499.0,1.72899454]
[1724030681744,0.000822,58500.0,58499.0,1.72499454]
[1724030681976,0.000822,58500.0,58499.0,3.22499454]
[1724030682409,0.000822,58500.0,58499.0,3.23899454]
[1724030683063,0.000822,58500.0,58499.0,3.25299454]
[1724030683266,0.000822,58500.0,58499.0,3.25499454]
[1724030683469,0.000822,58500.0,58499.0,3.23899454]
[1724030683922,0.000822,58500.0,58499.0,3.25299454]
[1724030684164,0.000822,58500.0,58499.0,2.99967454]
[1724030684372,0.000822,58500.0,58499.0,2.52417454]
[1724030684584,0.000822,58500.0,58499.0,2.53817454]
[1724030685241,0.000822,58500.0,58499.0,1.528]
[1724030685941,0.01483794,58500.0,58499.0,1.528]
[1724030686199,0.01483794,58500.0,58499.0,1.514]
[1724030686411,0.01483794,58500.0,58499.0,0.014]
[1724030686621,0.000822,58500.0,58499.0,0.014]
[1724030687070,0.078622,58500.0,58499.0,0.014]
[1724030687294,0.078622,58500.0,58499.0,0.028]
[1724030687716,0.09258297,58500.0,58499.0,0.38698]
[1724030687896,0.09258297,58500.0,58499.0,0.14766]
[1724030688118,0.09258297,58500.0,58499.0,0.028]
[1724030688324,0.19828,58500.0,58499.0,0.028]
[1724030688739,0.09257748,58500.0,58499.0,0.028]
[1724030689357,0.09257748,58500.0,58499.0,0.014]
[1724030689358,0.33189348,58500.0,58499.0,0.014]
[1724030689569,0.45155148,58500.0,58499.0,0.014]
[1724030689795,0.119665,58497.0,58494.0,0.1]
[1724030690006,0.33189348,58500.0,58484.0,0.239377]
[1724030690007,0.119671,58494.0,58484.0,0.239377]
[1724030690217,0.119671,58494.0,58489.0,0.11968]
[1724030690425,0.239324,58498.0,58488.0,0.239364]
[1724030690426,0.01393204,58493.0,58488.0,0.239364]
[1724030690633,0.01393204,58493.0,58491.0,0.119675]
[1724030690817,0.317939,58500.0,58490.0,0.239356]
[1724030690818,0.078622,58500.0,58490.0,0.239356]
[1724030691019,0.119661,58499.0,58494.0,0.127669]
[1724030691450,0.01391955,58498.0,58497.0,0.119664]
[1724030691856,0.078622,58500.0,58495.0,0.239333]
[1724030692060,0.01393905,58498.0,58497.0,0.119664]
[1724030692263,0.01394185,58499.0,58498.0,0.119662]
[1724030692467,0.078622,58500.0,58489.0,0.17155454]
[1724030692468,0.078622,58500.0,58497.0,0.239328]
[1724030692669,0.078622,58500.0,58498.0,0.119661]
[1724030693031,0.078622,58500.0,58489.0,0.18255454]
[1724030693273,0.078622,58500.0,58498.0,0.119661]
[1724030693978,0.078622,58500.0,58497.0,0.005]
[1724030693979,0.078622,58500.0,58499.0,0.11966]
[1724030694142,0.078622,58500.0,58499.0,0.35898]
[1724030694345,0.078622,58500.0,58490.0,0.101]
[1724030694346,0.078622,58500.0,58494.0,0.23934]
[1724030694544,0.078622,58500.0,58497.0,0.119664]
[1724030694767,0.078622,58500.0,58498.0,0.005]
[1724030695614,0.42318,58499.0,58498.0,0.005]
[1724030695823,1.17537454,58499.0,58498.0,0.005]
[1724030696669,0.1432,58497.0,58480.0,0.119698]
[1724030696868,0.240138,58500.0,58476.0,0.239412]
[1724030696869,0.079,58485.0,58484.0,0.51177509]
[1724030697186,0.079,58485.0,58480.0,0.239397]
[1724030697387,0.079,58485.0,58473.0,1.5]
[1724030697388,0.119672,58493.0,58488.0,0.119681]
[1724030697592,0.079,58492.0,58488.0,0.119681]
[1724030697795,0.09291875,58492.0,58488.0,0.119681]
[1724030697995,0.09291875,58492.0,58486.0,0.119686]
[1724030697996,0.21259275,58492.0,58486.0,0.119686]
[1724030698177,0.119679,58490.0,58484.0,0.36107]
[1724030698376,0.119679,58490.0,58484.0,0.119689]
[1724030698580,0.01386853,58489.0,58483.0,0.239385]
[1724030698779,0.01386853,58489.0,58484.0,0.11969]
[1724030699011,0.01386853,58489.0,58485.0,0.119688]
[1724030699245,0.01386853,58489.0,58480.0,0.002]
[1724030699418,0.01386853,58489.0,58486.0,0.119686]
[1724030699647,0.119676,58491.0,58486.0,0.119686]
[1724030699882,0.01387302,58488.0,58486.0,0.119686]
[1724030700086,0.081,58492.0,58487.0,0.119683]
[1724030700293,0.198674,58492.0,58486.0,0.239372]
[1724030700550,0.198674,58492.0,58484.0,0.247378]
[1724030700551,0.079,58492.0,58489.0,0.11968]
[1724030700963,0.198675,58492.0,58486.0,0.119685]
[1724030701164,0.119679,58490.0,58486.0,0.128686]
[1724030701369,0.079,58492.0,58484.0,0.23938]
[1724030701520,0.119677,58491.0,58483.0,0.239384]
[1724030701721,0.119677,58491.0,58489.0,0.005]
[1724030702124,0.119678,58490.0,58489.0,0.005]
[1724030702325,0.673692,58490.0,58489.0,0.005]
[1724030702524,0.738492,58490.0,58489.0,0.005]
[1724030702908,0.119691,58484.0,58480.0,0.1]
[1724030703332,0.119691,58484.0,58480.0,0.219698]
[1724030703549,0.239378,58485.0,58480.0,0.1]
[1724030703798,0.239375,58486.0,58479.0,0.219701]
[1724030703799,0.119692,58484.0,58479.0,0.219701]
[1724030704212,0.239347,58493.0,58468.0,0.0773]
[1724030704213,0.0753,58477.0,58471.0,0.00041176]
[1724030704417,0.119711,58474.0,58471.0,0.00041176]
[1724030704615,0.239419,58475.0,58471.0,0.00041176]
[1724030704826,0.239422,58474.0,58471.0,0.00041176]
[1724030705040,0.119707,58476.0,58471.0,0.12012776]
[1724030705247,0.119708,58476.0,58471.0,0.12012776]
[1724030705469,0.11971,58475.0,58471.0,0.12012876]
[1724030705676,0.0753,58477.0,58471.0,0.12012876]
[1724030705677,0.119711,58474.0,58471.0,0.00041176]
[1724030705892,0.01374724,58473.0,58471.0,0.00041176]
[1724030706103,0.119715,58472.0,58471.0,0.00041176]
[1724030706320,0.13345964,58472.0,58471.0,0.01041176]
[1724030706537,0.01374464,58472.0,58471.0,0.01041176]
[1724030706766,0.119713,58474.0,58471.0,1.51241176]
[1724030706972,0.119713,58474.0,58471.0,1.50041176]
[1724030707178,0.23942,58475.0,58471.0,1.51341176]
[1724030707179,0.119713,58473.0,58471.0,1.51341176]
[1724030707395,0.119713,58473.0,58471.0,1.52741176]
[1724030707604,0.359145,58472.0,58471.0,0.01341176]
[1724030707804,0.738675,58472.0,58471.0,0.02641176]
[1724030708054,0.7523971,58472.0,58471.0,0.02641176]
[1724030708453,0.5129671,58472.0,58471.0,0.02641176]
[1724030708880,0.2735371,58472.0,58471.0,0.01341176]
[1724030709078,0.2735371,58472.0,58471.0,0.00041176]
[1724030709324,0.2735371,58472.0,58471.0,0.01341176]
[1724030709522,0.5129671,58472.0,58471.0,0.02741176]
[1724030709725,0.5129671,58472.0,58471.0,0.00041176]
[1724030710126,0.5129671,58472.0,58471.0,0.01441176]
[1724030710260,0.7523971,58472.0,58471.0,0.02931486]
[1724030710462,1.16338164,58472.0,58471.0,0.02931486]
[1724030710702,1.18638164,58472.0,58471.0,0.02931486]
[1724030711105,1.42581164,58472.0,58471.0,0.02931486]
[1724030711328,1.42881164,58472.0,58471.0,0.02931486]
[1724030711552,1.52581164,58472.0,58471.0,0.02931486]
[1724030711960,1.52581164,58472.0,58471.0,0.01531486]
[1724030712173,1.52581164,58472.0,58471.0,0.01031486]
[1724030712575,1.52581164,58472.0,58471.0,0.02031486]
[1724030712776,1.52581164,58472.0,58471.0,0.00131486]
[1724030713178,1.53481164,58472.0,58471.0,0.00131486]
[1724030713377,1.53681164,58472.0,58471.0,0.00131486]
[1724030714380,1.77824164,58472.0,58471.0,0.00131486]
[1724030715223,1.93178412,58472.0,58471.0,0.00131486]
[1724030715423,0.980048,58462.0,58461.0,0.0009031]
[1724030715627,1.15160254,58462.0,58461.0,0.0009031]
[1724030715834,1.16528854,58462.0,58461.0,0.0009031]
[1724030716029,1.18828854,58462.0,58461.0,0.0009031]
[1724030716788,1.18828854,58462.0,58461.0,0.0149031]
[1724030717569,1.18828854,58462.0,58461.0,0.0079031]
[1724030718534,1.18828854,58462.0,58461.0,0.0009031]
[1724030718742,1.18828854,58462.0,58461.0,0.0029031]
[1724030719382,1.18828854,58462.0,58461.0,0.0049031]
[1724030720396,0.56744654,58462.0,58461.0,0.0049031]
[1724030720759,0.635363,58462.0,58461.0,0.0049031]
[1724030721526,1.12428854,58462.0,58461.0,0.0049031]
[1724030721681,1.29991739,58462.0,58461.0,0.0049031]
[1724030722297,1.18748854,58462.0,58461.0,0.0049031]
[1724030722509,1.52995954,58462.0,58461.0,0.0049031]
[1724030722747,1.52695954,58462.0,58461.0,0.0049031]
[1724030723138,1.52995954,58462.0,58461.0,0.0049031]
[1724030723748,1.54055838,58462.0,58461.0,0.0049031]
[1724030724863,1.53755838,58462.0,58461.0,0.0049031]
[1724030725064,1.54055838,58462.0,58461.0,0.0049031]
[1724030725268,1.52695954,58462.0,58461.0,0.0049031]
[1724030725705,1.28748854,58462.0,58461.0,0.0049031]
[1724030727739,1.5968854,58462.0,58461.0,0.0049031]
[1724030729549,1.52695954,58462.0,58461.0,0.0049031]
[1724030729755,1.28748854,58462.0,58461.0,0.0049031]
[1724030731037,1.12338854,58462.0,58461.0,0.0049031]
[1724030732299,1.14638854,58462.0,58461.0,0.0049031]
[1724030732706,1.22618854,58462.0,58461.0,0.0049031]
[1724030735844,1.14638854,58462.0,58461.0,0.0049031]
[1724030738193,1.04638854,58462.0,58461.0,0.0049031]
[1724030741426,1.31230842,58462.0,58461.0,0.0049031]
[1724030741848,1.20766957,58462.0,58461.0,0.0049031]
[1724030744816,1.37366957,58462.0,58461.0,0.0049031]
[1724030745760,1.61314057,58462.0,58461.0,0.0049031]
[1724030747452,1.61614057,58462.0,58461.0,0.0049031]
[1724030747650,1.61314057,58462.0,58461.0,0.0049031]
[1724030748231,1.37366957,58462.0,58461.0,0.0049031]
[1724030748659,1.22786957,58462.0,58461.0,0.0049031]
[1724030750387,1.27872141,58462.0,58461.0,0.0049031]
[1724030750835,1.51819241,58462.0,58461.0,0.0049031]
[1724030751047,1.46734057,58462.0,58461.0,0.0049031]
[1724030751423,1.54361834,58462.0,58461.0,0.0049031]
[1724030751620,1.46734057,58462.0,58461.0,0.0049031]
[1724030752338,1.57950515,58462.0,58461.0,0.0049031]
[1724030752834,1.32957326,58462.0,58461.0,0.0049031]
[1724030753288,1.35499918,58462.0,58461.0,0.0049031]
[1724030753554,1.32978532,58462.0,58461.0,0.0049031]
[1724030753764,1.22786957,58462.0,58461.0,0.0049031]
[1724030754281,1.35532393,58462.0,58461.0,0.0049031]
[1724030754477,1.35532393,58462.0,58461.0,0.1488031]
[1724030754478,0.22262139,58462.0,58461.0,0.1488031]
[1724030754684,0.45437303,58462.0,58461.0,0.1488031]
[1724030755080,0.45437303,58462.0,58461.0,1.6488031]
[1724030755295,0.26589526,58462.0,58461.0,1.6488031]
[1724030755520,0.50536626,58462.0,58461.0,1.6488031]
[1724030755720,0.14616026,58462.0,58461.0,0.1488031]
[1724030755989,0.14616026,58462.0,58461.0,0.2685401]
[1724030755990,0.09516703,58462.0,58461.0,0.2685401]
[1724030756249,0.09516703,58462.0,58461.0,2.0080151]
[1724030756374,0.09516703,58462.0,58461.0,1.7685401]
[1724030756578,0.013686,58462.0,58461.0,1.7685401]
[1724030756777,0.05099323,58464.0,58462.0,0.0755]
[1724030756982,0.09500068,58463.0,58462.0,0.0755]
[1724030757182,0.21473368,58463.0,58462.0,0.0755]
[1724030757387,0.26572691,58463.0,58462.0,0.0755]
[1724030757770,0.14599391,58463.0,58462.0,0.0755]
[1724030758279,0.09500068,58463.0,58462.0,0.0805]
[1724030758528,0.01342135,58463.0,58462.0,0.0805]
[1724030758733,0.09498132,58463.0,58462.0,0.0805]
[1724030758934,0.26570755,58463.0,58462.0,0.0755]
[1724030759274,0.21471432,58463.0,58462.0,0.0815]
[1724030759893,0.21471432,58463.0,58462.0,0.0875]
[1724030760550,0.52817455,58463.0,58462.0,0.012]
[1724030760975,0.71664832,58463.0,58462.0,0.012]
[1724030761158,1.20414615,58463.0,58462.0,0.012]
[1724030762264,0.50520347,58463.0,58462.0,0.0899]
[1724030762882,0.74467047,58463.0,58462.0,0.0899]
[1724030763299,0.61208835,58463.0,58462.0,0.0899]
[1724030763512,0.94168591,58463.0,58462.0,0.0899]
[1724030763723,0.96468591,58463.0,58462.0,0.012]
[1724030763924,0.88820962,58463.0,58462.0,0.012]
[1724030764562,0.93922999,58463.0,58462.0,0.012]
[1724030767691,1.34765291,58463.0,58462.0,0.012]
[1724030767891,1.39863098,58463.0,58462.0,0.012]
[1724030768110,1.63809798,58463.0,58462.0,0.012]
[1724030768324,1.51064362,58463.0,58462.0,0.012]
[1724030768563,1.51164362,58463.0,58462.0,0.006]
[1724030768767,1.68319816,58463.0,58462.0,0.006]
[1724030768977,1.68519816,58463.0,58462.0,0.007]
[1724030769198,1.8377537,58463.0,58462.0,0.007]
[1724030769612,1.28023216,58463.0,58462.0,0.007]
[1724030769822,1.12767662,58463.0,58462.0,0.007]
[1724030770039,1.25527037,58463.0,58462.0,0.001]
[1724030770254,0.88820962,58463.0,58462.0,0.002]
[1724030770450,1.01580303,58463.0,58462.0,0.002]
[1724030770657,0.96477145,58463.0,58462.0,0.002]
[1724030770870,0.96477145,58463.0,58462.0,0.0790042]
[1724030771290,1.20423845,58463.0,58462.0,0.0029042]
[1724030771500,1.31285906,58463.0,58462.0,0.0029042]
[1724030771709,1.33837003,58463.0,58462.0,0.0029042]
[1724030771928,1.33837003,58463.0,58462.0,0.1477042]
[1724030771929,0.09498808,58463.0,58462.0,0.1477042]
[1724030772162,0.17155596,58463.0,58462.0,0.1477042]
[1724030772388,0.01342135,58463.0,58462.0,0.2674392]
[1724030772604,0.01342135,58463.0,58462.0,1.7674392]
[1724030772991,0.07656788,58467.0,58462.0,1.7674392]
[1724030772992,0.05104775,58467.0,58464.0,0.11973]
[1724030773233,0.05104775,58467.0,58463.0,0.239464]
[1724030773448,0.01342951,58466.0,58464.0,0.18543]
[1724030773661,0.01342951,58466.0,58465.0,0.0791]
[1724030774081,0.119727,58466.0,58465.0,0.0791]
[1724030774286,0.13318371,58466.0,58465.0,0.0791]
[1724030774882,0.01345671,58466.0,58465.0,0.743447]
[1724030775131,0.01345671,58466.0,58465.0,0.749447]
[1724030775340,0.000822,58471.0,58470.0,0.119719]
[1724030775556,0.000822,58471.0,58470.0,0.503958]
[1724030775779,0.01427308,58471.0,58470.0,0.264519]
[1724030775999,0.000822,58471.0,58470.0,0.264519]
[1724030777072,0.01427308,58471.0,58470.0,1.6448]
[1724030777278,0.01427308,58471.0,58470.0,1.6508]
[1724030777482,0.000822,58471.0,58470.0,1.6508]
[1724030780629,0.599407,58471.0,58470.0,0.006]
[1724030780825,0.37350416,58471.0,58470.0,0.006]
[1724030781469,0.13407016,58471.0,58470.0,0.006]
[1724030781680,0.37350416,58471.0,58470.0,0.006]